[Event "FIDE WTC Prel-B 2022"]
[Site "Jerusalem"]
[Date "2022.11.21"]
[Round "4.22"]
[White "Mamedov, Rauf"]
[Black "Bartel, Mateusz"]
[Result "1/2-1/2"]
[ECO "A07"]
[WhiteElo "2646"]
[BlackElo "2627"]
[Annotator "TA"]
[PlyCount "81"]
[EventDate "2022.11.20"]
[EventType "team-tourn"]
[EventCountry "ISR"]
[SourceTitle "playchess.com"]
[Source "ChessBase"]
[SourceQuality "1"]
[WhiteTeam "Azerbaijan"]
[BlackTeam "Poland"]
[WhiteTeamCountry "AZE"]
[BlackTeamCountry "POL"]
[TimeControl "2700+10"]

{[%evp 15,81,-21,-14,-12,-24,-14,-1,-27,-6,-21,-22,-25,-14,-71,-54,-73,-58,-52,-45,-80,-64,-64,-57,-70,-59,-74,-11,-7,-23,-17,-12,-8,-21,-35,-14,-40,-13,-14,-16,0,0,0,16,11,20,11,9,13,63,60,95,0,0,0,0,0,0,0,0,0,0,0,0,0,0,0,0,0]} 1. Nf3 {[%emt 0:00:06]} d5 {[%emt 0:00:15]} 2. g3 {[%emt 0:00:01]} g6 {[%emt 0:00:10]} 3. Bg2 {[%emt 0:00:02]} Bg7 {[%emt 0:00:03]} 4. O-O {[%emt 0:00:03]} e5 {[%emt 0:00:12]} 5. d3 {[%emt 0:00:01]} Ne7 {[%emt 0:00:23]} 6. e4 {[%emt 0:00:02]} O-O {[%emt 0:00:43]} 7. exd5 {[%emt 0:00:02]} Nxd5 {[%emt 0:00:04]} 8. Nbd2 {[%emt 0:00:16]} Nc6 {[%emt 0:00:26]} 9. a3 {[%emt 0:00:02] A07: Réti Opening: New York and Capablanca Systems.} h6 {[%emt 0:02:39]} 10. Re1 {[%emt 0:00:03]} Re8 {[%emt 0:03:32]} 11. Rb1 {[%emt 0:00:04]} a5 {[%emt 0:00:26] [#]} 12. c3 $146 {[%emt 0:05:13]} (12. c4 $5 {[%cal Rc4d5]} Nb6 13. Ne4 $11) ({Predecessor:} 12. c4 Nf6 13. b4 axb4 14. axb4 Bg4 15. b5 Nd4 16. h3 Nxf3+ 17. Nxf3 Bxf3 18. Bxf3 {0-1 (53) Mamedov,R (2678)-Navara,D (2758) Riga 2021}) 12... a4 {[%emt 0:02:25]} 13. Ne4 {[%emt 0:01:05]} Nf6 {[%emt 0:02:57][%cal Bd5f6,Bf6d7,Bd7b6][%mdl 32]} 14. Nfd2 {[%emt 0:02:33]} (14. Nxf6+ $11 {keeps the balance.} Qxf6 15. Nd4) 14... Nd7 $1 $17 {[%emt 0:03:30]} ({Resist} 14... Qxd3 15. Nxf6+ Bxf6 16. Ne4 $1 $14) 15. f4 {[%emt 0:12:26]} exf4 $1 {[%emt 0:06:55]} 16. gxf4 {[%emt 0:00:01]} Nb6 {[%emt 0:00:51]} 17. Nf1 {[%emt 0:05:34]} Ne7 {[%emt 0:06:59]} 18. Qe2 {[%emt 0:08:59]} Bd7 {[%emt 0:02:11]} 19. Qf2 {[%emt 0:02:05]} Bc6 {[%emt 0:02:20]} 20. Be3 $1 {[%emt 0:00:52] [#]} Nf5 {[%emt 0:00:45]} (20... Qxd3 $2 21. Bxb6 cxb6 22. Rbd1 $16) (20... Nbd5 $1 $17) 21. Bxb6 $11 {[%emt 0:00:33]} cxb6 {[%emt 0:00:07]} 22. Rbd1 {[%emt 0:01:54]} Nh4 {[%emt 0:02:30]} 23. Bh1 $1 {[%emt 0:00:02]} f5 {[%emt 0:00:03]} 24. Ned2 {[%emt 0:01:17]} Rxe1 {[%emt 0:00:28]} 25. Rxe1 {[%emt 0:00:05]} Bxh1 {[%emt 0:00:07]} 26. Kxh1 {[%emt 0:00:01]} Qd5+ {[%emt 0:00:04]} 27. Kg1 {[%emt 0:00:04]} g5 {[%emt 0:00:04]} 28. d4 {[%emt 0:01:07]} Rf8 {[%emt 0:00:30]} 29. Ne3 {[%emt 0:00:19]} Qc6 {[%emt 0:01:02]} 30. Ng2 {[%emt 0:00:25]} Ng6 {[%emt 0:00:48]} 31. Qf3 {[%emt 0:00:52]} gxf4 {[%emt 0:04:59]} (31... Qb5 $11) 32. Qh5 {[%emt 0:03:20]} Re8 {[%emt 0:00:47]} 33. Rxe8+ {[%emt 0:00:19]} ({Better is} 33. Qxf5 $16 {aiming for Rxe8+.} Rf8 34. Qe6+ Kh7 {[#]} 35. Nf3 $1) 33... Qxe8 {[%emt 0:00:02] The position is equal.} 34. Qxf5 {[%emt 0:00:19] Hoping for Kf2.} Qe2 {[%emt 0:00:09][%cal Oe2g2] And now ...Qxg2+! would win.} 35. Qxg6 {[%emt 0:00:10] Nf1 is the strong threat. Chess con chili.} Qxd2 {[%emt 0:00:04][%mdl 4096] Endgame KQB-KQN} 36. Qe6+ {[%emt 0:00:00]} Kh8 {[%emt 0:00:04]} 37. Qe8+ {[%emt 0:00:01]} Kh7 {[%emt 0:00:01]} 38. Qe4+ {[%emt 0:00:03]} Kh8 {[%emt 0:00:06]} 39. Qe8+ {[%emt 0:00:05]} Kh7 {[%emt 0:00:01]} 40. Qe4+ {[%emt 0:00:01]} Kh8 {[%emt 0:00:01]} 41. Qe8+ {[%emt 0:01:12] Weighted Error Value: White=0.09 (flawless) /Black=0.09 (flawless)} 1/2-1/2

[Event "FIDE WTC Prel-B 2022"]
[Site "Jerusalem"]
[Date "2022.11.21"]
[Round "4.23"]
[White "Gumularz, Szymon"]
[Black "Suleymanli, Aydin"]
[Result "1/2-1/2"]
[ECO "D27"]
[WhiteElo "2561"]
[BlackElo "2543"]
[Annotator "TA"]
[PlyCount "65"]
[EventDate "2022.11.20"]
[EventType "team-tourn"]
[EventCountry "ISR"]
[SourceTitle "playchess.com"]
[Source "ChessBase"]
[SourceQuality "1"]
[WhiteTeam "Poland"]
[BlackTeam "Azerbaijan"]
[WhiteTeamCountry "POL"]
[BlackTeamCountry "AZE"]
[TimeControl "2700+10"]

{[%evp 12,65,35,-2,0,-8,-14,-14,-20,0,0,0,0,0,0,0,0,17,7,0,0,0,0,0,0,0,0,0,0,0,0,0,0,0,0,0,0,0,0,0,0,-7,0,0,0,0,0,0,0,0,0,0,0,0,0,0]} 1. d4 {[%emt 0:00:02]} d5 {[%emt 0:00:06]} 2. c4 {[%emt 0:00:02]} dxc4 {[%emt 0:00:04]} 3. Nf3 {[%emt 0:00:19]} Nf6 {[%emt 0:00:09]} 4. e3 {[%emt 0:00:02]} e6 {[%emt 0:00:04]} 5. Bxc4 {[%emt 0:00:03]} c5 {[%emt 0:00:05]} 6. O-O {[%emt 0:00:03]} a6 {[%emt 0:00:02]} 7. e4 {[%emt 0:02:26]} (7. b3 {simplifies} cxd4 8. Qxd4 Qxd4 9. Nxd4 Bd7 10. Be2) 7... b5 {[%emt 0:00:55] Prevents e5. The position is equal. D27: Queen's Gambit Accepted: Classical main line: 7 e4!? and 7 a4.} 8. Be2 $1 {[%emt 0:00:24][%mdl 4] outshines the older 8.Bd3.} Nxe4 {[%emt 0:02:05]} 9. a4 {[%emt 0:00:02]} b4 {[%emt 0:00:01]} 10. Nbd2 {[%emt 0:43:27]} Bb7 {[%emt 0:01:10]} 11. Nxe4 {[%emt 0:00:00]} Bxe4 {[%emt 0:00:03]} 12. Be3 {[%emt 0:00:00][%cal Bc1e3,Be3d4,Bd4e5][%mdl 32]} cxd4 {[%emt 0:00:05]} 13. Nxd4 {[%emt 0:00:00]} Nc6 {[%emt 0:00:04]} 14. Bf3 {[%emt 0:00:00]} Bxf3 {[%emt 0:00:07]} 15. Qxf3 {[%emt 0:00:00]} Nxd4 {[%emt 0:00:02]} 16. Bxd4 {[%emt 0:00:00] [#] Strongly threatening Qc6+.} Qd5 {[%emt 0:00:04] [#] Prevents Qc6+.} 17. Qxd5 $146 {[%emt 0:00:00]} ({Predecessor:} 17. Qe3 Be7 18. Rad1 Rd8 19. Qe2 Qb7 20. Qg4 Rg8 21. a5 Rd5 22. Bb6 Bd6 23. Rxd5 Qxd5 {½-½ (35) Cheparinov,I (2659)-Inarkiev,E (2663) Mali Losinj 2021}) 17... exd5 {[%emt 0:00:11]} 18. Rfe1+ {[%emt 0:00:00]} Kd7 {[%emt 0:00:04]} 19. Rad1 {[%emt 0:00:00]} Re8 {[%emt 0:06:44]} 20. Rxe8 {[%emt 0:00:00]} Kxe8 $11 {[%emt 0:00:02][%mdl 4096] Endgame KRB-KRB} 21. Be5 {[%emt 0:00:00]} f6 {[%emt 0:00:22]} 22. Bf4 {[%emt 0:00:00]} Be7 {[%emt 0:00:21]} 23. Rxd5 {[%emt 0:00:00]} Kf7 {[%emt 0:00:24]} 24. Kf1 {[%emt 0:00:00]} Rc8 {[%emt 0:00:11]} 25. Ke2 {[%emt 0:00:00]} Ke6 {[%emt 0:00:26]} 26. Rd3 {[%emt 0:00:00]} Rc2+ {[%emt 0:02:32]} 27. Rd2 {[%emt 0:00:00]} Rc4 {[%emt 0:00:16]} 28. Be3 {[%emt 0:00:00]} b3 {[%emt 0:02:03][%cal Oe7d6]} 29. Rd4 {[%emt 0:00:00] Against Bd6} Rc2+ {[%emt 0:00:46]} 30. Rd2 {[%emt 0:00:00]} Rc4 {[%emt 0:00:19][%cal Oe7d6]} 31. Rd4 {[%emt 0:00:00] Prevents Bd6.} Rc2+ {[%emt 0:00:10]} 32. Rd2 {[%emt 0:00:00]} Rc4 {[%emt 0:00:03]} 33. Rd4 {[%emt 0:00:00] Against Bd6. An even fight not without its subleties.   Weighted Error Value: White=0.02 (flawless) /Black=0.00 (flawless)} 1/2-1/2

[Event "FIDE WTC Prel-B 2022"]
[Site "Jerusalem"]
[Date "2022.11.21"]
[Round "4.24"]
[White "Asadli, Vugar"]
[Black "Janik, Igor"]
[Result "1-0"]
[ECO "C50"]
[WhiteElo "2567"]
[BlackElo "2539"]
[Annotator "TA"]
[PlyCount "111"]
[EventDate "2022.11.20"]
[EventType "team-tourn"]
[EventCountry "ISR"]
[SourceTitle "playchess.com"]
[Source "ChessBase"]
[SourceQuality "1"]
[WhiteTeam "Azerbaijan"]
[BlackTeam "Poland"]
[WhiteTeamCountry "AZE"]
[BlackTeamCountry "POL"]
[TimeControl "2700+10"]

{[%evp 13,111,8,1,2,12,6,18,20,23,20,22,0,0,2,9,-29,-34,-31,-28,-52,-36,-52,-28,-54,-32,-48,-66,-63,-47,-52,-59,-66,-51,-36,17,-88,-87,-73,-31,-62,-55,-52,0,0,0,0,0,0,0,0,0,0,0,0,0,0,0,0,0,0,0,0,0,0,665,632,29963,29965,29952,29955,29954,29953,29952,29961,29953,12831,12833,12835,29937,12834,12841,12834,12827,12836,12838,943,12834,12835,12844,12834,12847,12850,29940,29944,29957,29957,29962,29946,12593,12438]} 1. e4 {[%emt 0:00:03]} e5 {[%emt 0:00:03]} 2. Nf3 {[%emt 0:00:04]} Nc6 {[%emt 0:00:01]} 3. Bc4 {[%emt 0:00:06]} Bc5 {[%emt 0:00:49]} 4. d3 {[%emt 0:00:07]} Nf6 {[%emt 0:00:04]} 5. Nc3 {[%emt 0:00:03]} h6 {[%emt 0:00:50]} 6. a3 {[%emt 0:00:14]} O-O {[%emt 0:01:22]} 7. O-O {[%emt 0:01:59]} d6 {[%emt 0:02:24] was the old line (7...a6).} 8. Na4 {[%emt 0:00:42] C50: Hungarian Defence and Giuoco Pianissimo.} Bb6 {[%emt 0:00:01]} 9. h3 {[%emt 0:01:21]} Be6 {[%emt 0:03:02]} 10. Bxe6 $5 {[%emt 0:00:25][%mdl 4] The position is equal. is the new trend. An interesting side line.} fxe6 {[%emt 0:00:02]} 11. b4 {[%emt 0:01:24]} Qe8 {[%emt 0:02:33]} 12. c4 {[%emt 0:01:15] [#]} Bd4 $146 {[%emt 0:00:29]} ({Predecessor:} 12... Nd4 13. Nxb6 Nxf3+ 14. Qxf3 axb6 15. Qe2 Qg6 16. Ra2 Nh5 17. Qg4 Kh7 18. Qxg6+ Kxg6 {1-0 (64) Nepomniachtchi,I (2792)-Caruana,F (2820) Paris 2021}) 13. Ra2 {[%emt 0:00:10]} a6 {[%emt 0:00:14]} 14. Be3 {[%emt 0:02:07]} b5 {[%emt 0:00:48]} 15. Nb2 {[%emt 0:01:32]} Nh5 $36 {[%emt 0:04:59][%mdl 2048] Black has some pressure.} 16. Kh2 {[%emt 0:02:59]} g5 {[%emt 0:04:05]} 17. g3 {[%emt 0:03:04]} Qg6 {[%emt 0:05:04]} (17... Rf6 $5 {[%cal Re8f7]} 18. Bxd4 exd4 $15) 18. Qe2 {[%emt 0:00:28]} Rf7 {[%emt 0:00:45]} 19. cxb5 {[%emt 0:03:40]} axb5 {[%emt 0:00:06] ...Nxb4 is the strong threat.} 20. Nd1 $1 {[%emt 0:00:03]} Raf8 {[%emt 0:03:36]} 21. Nd2 {[%emt 0:00:37]} Bb6 $1 {[%emt 0:02:44]} 22. Bxb6 {[%emt 0:03:05]} cxb6 {[%emt 0:00:01]} 23. Nb3 {[%emt 0:00:03]} Rf3 {[%emt 0:01:26]} ({Black should play} 23... Nd4 $15 24. Nxd4 exd4) 24. Rg1 {[%emt 0:00:10]} (24. Ne3 $11) 24... Nd4 $1 $17 {[%emt 0:00:39]} 25. Nxd4 {[%emt 0:00:02]} exd4 {[%emt 0:00:01]} 26. Rc2 $1 {[%emt 0:00:32][%cal Ba2c2,Bc2c6,Bc6d6][%mdl 32]} g4 {[%emt 0:00:09]} 27. Rc6 {[%emt 0:00:41][%csl LRb6,LRd6]} gxh3 {[%emt 0:01:17]} (27... e5 $15) 28. g4 $11 {[%emt 0:01:45]} (28. Rxd6 Nf6 29. Qxf3 Ng4+ $17) 28... Ng7 {[%emt 0:00:34] Hoping for ...R8f4.} 29. Rxd6 {[%emt 0:01:08]} Qg5 {[%emt 0:00:51]} 30. e5 {[%emt 0:00:10]} Re3 {[%emt 0:02:06]} 31. fxe3 {[%emt 0:01:35] Really sharp!} Qxe5+ {[%emt 0:00:01]} 32. Kxh3 {[%emt 0:00:08]} Qxd6 {[%emt 0:00:01]} 33. Nf2 {[%emt 0:00:10]} e5 {[%emt 0:01:32]} 34. Ne4 {[%emt 0:00:37]} Qe6 {[%emt 0:00:30]} 35. exd4 {[%emt 0:00:34]} Nh5 {[%emt 0:01:01]} 36. Kh2 {[%emt 0:02:10]} Nf4 {[%emt 0:00:01]} 37. Qf3 {[%emt 0:00:13]} exd4 {[%emt 0:02:14]} 38. g5 {[%emt 0:00:48] Threatens to win with Nf6+.} Qe5 {[%emt 0:00:01][%mdl 8192] [#] White leaves nothing to chance now.} (38... Kh8 $11) 39. Nf6+ $1 $18 {[%emt 0:01:15]} ({Worse is} 39. gxh6+ Ng6+ 40. Qg3 Kh7 $11) 39... Rxf6 {[%emt 0:01:32]} 40. gxf6+ {[%emt 0:00:05] KQR-KQN} Kf7 {[%emt 0:00:01]} 41. Qb7+ {[%emt 0:01:11]} Kxf6 {[%emt 0:00:02]} 42. Qg7+ {[%emt 0:00:26]} ({Weaker is} 42. Qxb6+ Ne6+ 43. Kh1 Qh5+ 44. Kg2 Qe2+ 45. Kh3 Qh5+ 46. Kg3 Qg5+ 47. Kh2 Qh5+ 48. Kg3 Qg5+ 49. Kh2 Qh5+ 50. Kg3 $11) 42... Ke6 {[%emt 0:01:17]} 43. Qxh6+ {[%emt 0:00:47]} Kf7 {[%emt 0:00:22]} 44. Qh7+ {[%emt 0:00:11]} (44. Qxb6 $2 {loses.} Nd5+ 45. Kh3 Nxb6 $19) (44. Rg5 $142 Qf6 45. Qh7+ Ke6 46. Rxb5 Nd5 47. Qg8+ Kd7 48. Rxd5+ Ke7 49. Qd8+ Kf7 50. Rd7+ Kg6 51. Rd6) 44... Ke6 {[%emt 0:00:03]} 45. Qg8+ {[%emt 0:00:31]} Kf6 {[%emt 0:00:17]} 46. Qf8+ {[%emt 0:01:18]} (46. Qh8+ $142 Ke6 {[#]} 47. Re1 $3 {[%mdl 512]} Nxd3+ 48. Rxe5+ Nxe5 49. Qe8+ Kd6 50. Qb8+ Kd5 51. Qxb6 Ng4+ 52. Kg3) 46... Ke6 {[%emt 0:00:02]} 47. Qe8+ {[%emt 0:01:58]} Kf6 {[%emt 0:00:06]} 48. Qxe5+ {[%emt 0:00:07]} Kxe5 {[%emt 0:00:02] KR-KN} 49. Rg5+ {[%emt 0:00:01]} (49. Rd1 $142 Ng6 50. Kg3) 49... Kd6 {[%emt 0:00:05]} 50. Rg3 {[%emt 0:00:06]} Ne2 {[%emt 0:00:15]} 51. Rf3 {[%emt 0:00:22]} Nc3 {[%emt 0:00:10]} 52. Rf1 {[%emt 0:00:09]} Nd5 {[%emt 0:00:13]} 53. Kg3 {[%emt 0:00:03]} Ne3 {[%emt 0:03:07]} 54. Rf6+ {[%emt 0:00:05]} Kc7 {[%emt 0:00:00]} 55. Kf3 {[%emt 0:00:23]} Nc2 {[%emt 0:00:00]} 56. Ke4 {[%emt 0:00:02] Weighted Error Value: White=0.07 (flawless) /Black=0.62} 1-0